fUSD/lending_fUSD_20240523
["ID","MTS","AMOUNT","RATE_DAILY","PERIOD"]
[327775087,1716473434548,-2000.0,0.00021918,2]
[327775088,1716473434558,-17575.71069401,0.00022,2]
[327775089,1716473434568,-1000.13275844,0.00022,2]
[327775090,1716473434578,-150.0,0.00022,3]
[327775091,1716473434587,-152.73750917,0.00022036,2]
[327775092,1716473434597,-170.38049411,0.00022047,2]
[327775093,1716473434608,-166.66666666,0.00022075,2]
[327775094,1716473434617,-603.3802132,0.00022105,2]
[327775095,1716473434627,-1000.0,0.00022116,2]
[327775096,1716473434636,-195.43278619,0.00022136,2]
[327775097,1716473434645,-152.80800506,0.00022142,2]
[327775098,1716473434657,-1476.18439839,0.00022169,2]
[327775099,1716473434666,-1476.18439839,0.00022173,2]
[327775100,1716473434675,-150.97582733,0.00022189,2]
[327775101,1716473434685,-652.43806063,0.00022214,2]
[327775102,1716473434694,-1476.18439839,0.00022223,2]
[327775103,1716473434703,-152.96549234,0.00022267,2]
[327775104,1716473434716,-166.66666667,0.00022285,2]
[327775105,1716473434731,-639.94,0.00022291,2]
[327775106,1716473434746,-150.97582733,0.00022313,2]
[327775107,1716473434759,-1165.95,0.00022399,2]
[327775108,1716473434770,-603.3802132,0.00022409,2]
[327775109,1716473434784,-155.07639621,0.0002243,2]
[327775110,1716473434797,-603.3802132,0.00022484,2]
[327775111,1716473434812,-166.29644051,0.00022485,2]
[327775112,1716473434824,-150.0,0.000225,3]
[327775113,1716473434840,-652.43806063,0.00022506,2]
[327775114,1716473434854,-603.3802132,0.00022522,2]
[327775115,1716473434869,-8795.52,0.00022562,2]
[327775116,1716473434881,-1761.18,0.00022562,2]
[327775117,1716473434895,-323.06,0.00022562,2]
[327775118,1716473434913,-160.57154211,0.00022595,2]
[327775119,1716473434926,-652.43806063,0.00022595,2]
[327775120,1716473434940,-159.08274938,0.000226,2]
[327775121,1716473434951,-155.07639621,0.00022615,2]
[327775122,1716473434963,-153.62237173,0.00022649,2]
[327775123,1716473434975,-1401.0,0.00022699,2]
[327775124,1716473434990,-195.43278619,0.00022714,2]
[327775125,1716473435003,-373.75146235,0.00022718,2]
[327775126,1716473435017,-166.66666667,0.00022739,2]
[327775127,1716473435032,-178.06496912,0.00022775,2]
[327775128,1716473435048,-1476.18439839,0.00022796,2]
[327775129,1716473435059,-981.41797301,0.00022798,2]
[327775130,1716473435071,-652.43806063,0.00022849,2]
[327775131,1716473435083,-652.43806063,0.00022868,2]
[327775132,1716473435098,-195.43278619,0.00022869,2]
[327775133,1716473435112,-150.87239784,0.00022885,2]
[327775134,1716473435126,-150.0,0.00022886,2]
[327775135,1716473435137,-161.44222683,0.00022887,2]
[327775136,1716473435149,-512.42699342,0.00022888,2]
[327775137,1716473435166,-150.25,0.00022888,2]
[327775138,1716473435181,-373.75146235,0.00022889,2]
[327775139,1716473435194,-1330.56757394,0.00022889,2]
[327775140,1716473435206,-1330.56757393,0.00022889,2]
[327775141,1716473435218,-1330.56757393,0.00022889,2]
[327775142,1716473435231,-1330.56757393,0.00022889,2]
[327775143,1716473435243,-119924.49682421,0.00022898,2]
[327775144,1716473435255,-119924.49682413,0.00022898,2]
[327775145,1716473435267,-119924.49682413,0.00022898,2]
[327775146,1716473435279,-195.43278619,0.00022909,2]
[327775147,1716473435295,-152.96549234,0.00022911,2]
[327775148,1716473435308,-195.43278619,0.00022928,2]
[327775149,1716473435321,-155.07639621,0.00022929,2]
[327775150,1716473435333,-119924.49682413,0.00022939,2]
[327775151,1716473435345,-169.1813528,0.00022953,2]
[327775152,1716473435358,-741.0,0.00023,2]
[327775153,1716473435370,-240.00653708,0.00023,2]
[327775154,1716473435384,-150.0,0.00023,3]
[327775155,1716473435399,-155.08702743,0.00023004,2]
[327775156,1716473435415,-153.62237173,0.0002301,2]
[327775157,1716473435428,-180.12261471,0.00023047,2]
[327775158,1716473435441,-150.25,0.00023055,2]
[327775159,1716473435454,-1000.0,0.00023059,2]
[327775160,1716473435467,-172.96240639,0.00023062,2]
[327775161,1716473435480,-379.99300102,0.00023065,2]
[327775162,1716473435493,-221.07193877,0.00023066,2]
[327775163,1716473435506,-159.18081807,0.00023151,2]
[327775164,1716473435518,-1330.56757393,0.00023155,2]
[327775165,1716473435531,-652.43806063,0.00023165,2]
[327775166,1716473435544,-603.3802132,0.00023185,2]
[327775167,1716473435555,-195.43278619,0.00023191,2]
[327775168,1716473435567,-157.47813498,0.00023201,2]
[327775169,1716473435580,-152.80800506,0.00023216,2]
[327775170,1716473435592,-652.43806063,0.00023216,2]
[327775171,1716473435603,-153.62237173,0.00023226,2]
[327775172,1716473435615,-160.107484,0.00023227,2]
[327775173,1716473435628,-373.75146235,0.00023235,2]
[327775174,1716473435640,-160.23933138,0.00023297,2]
[327775175,1716473435652,-373.75146235,0.00023337,2]
[327775176,1716473435665,-652.43806063,0.00023339,2]
[327775177,1716473435676,-221.07193877,0.0002334,2]
[327775178,1716473435688,-153.62237173,0.00023342,2]
[327775179,1716473435700,-195.43278619,0.00023345,2]
[327775180,1716473435712,-221.07193877,0.00023366,2]
[327775181,1716473435724,-2005.18444528,0.000234,2]
[327775182,1716473435737,-379.99300102,0.0002343,2]
[327775183,1716473435750,-195.43278619,0.00023431,2]
[327775184,1716473435761,-166.29644051,0.00023457,2]
[327775185,1716473435774,-603.3802132,0.00023471,2]
[327775186,1716473435786,-150.0,0.000235,3]
[327775187,1716473435798,-373.75146235,0.00023502,2]
[327775188,1716473435810,-8796.83087885,0.00023599,2]
[327775189,1716473436346,-939.82724979,0.00023599,2]
[327775190,1716473436359,-882.33461522,0.00023599,2]
[327775191,1716473436374,-580.73799424,0.00023599,2]
[327775192,1716473436855,-799.2,0.00020959,2]
[327775193,1716473436870,-1202.88,0.00020959,2]
[327775194,1716473436882,-216.13067106,0.00020959,2]
[327775195,1716473436892,-67675.86932894,0.00023599,2]
[327775196,1716473436907,-13614.777,0.00023599,2]
[327775197,1716473436918,-2885.48296,0.00023599,2]
[327775198,1716473436930,-10033.21510738,0.00023599,2]
[327775199,1716473436942,-14515.42168971,0.00023599,2]
[327775200,1716473436952,-150.87239784,0.00023613,2]
[327775201,1716473436962,-153.62237173,0.00023629,2]
[327775202,1716473436972,-603.3802132,0.00023645,2]
[327775203,1716473436983,-652.43806063,0.0002368,2]
[327775204,1716473436992,-652.43806063,0.00023686,2]
[327775205,1716473437002,-303.95454909,0.00023688,2]
[327775206,1716473437012,-150.25,0.00023689,2]
[327775207,1716473437022,-30846.798,0.00023699,2]
[327775208,1716473437031,-373.75146235,0.00023699,2]
[327775209,1716473437041,-1330.56757393,0.00023704,2]
[327775210,1716473437051,-373.75146235,0.00023715,2]
[327775211,1716473437061,-152.80800506,0.00023733,2]
[327775212,1716473437071,-603.3802132,0.00023735,2]
[327775213,1716473437081,-234.06032,0.0002376,2]
[327775214,1716473437090,-152.73750917,0.00023771,2]
[327775215,1716473437100,-150.97582733,0.00023773,2]
[327775216,1716473437110,-159.18081807,0.00023782,2]
[327775217,1716473437119,-153.62237173,0.00023784,2]
[327775218,1716473437128,-379.99300102,0.00023794,2]
[327775219,1716473437138,-1058.1159863,0.00023798,10]
[327775220,1716473437148,-1476.18439839,0.00023802,2]
[327775221,1716473437158,-1000.0,0.00023806,2]
[327775222,1716473437167,-184.33416391,0.00023821,2]
[327775223,1716473437177,-221.07193877,0.00023838,2]
[327775224,1716473437186,-1476.18439839,0.00023846,2]
[327775225,1716473437195,-603.3802132,0.0002387,2]
[327775226,1716473437206,-7500.0,0.0002389,2]
[327775227,1716473437215,-10000.0,0.00023897,2]
[327775228,1716473437226,-3026.12804747,0.000239,2]
[327775229,1716473437236,-161.619254,0.000239,2]
[327775230,1716473437245,-192.05306906,0.000239,2]
[327775231,1716473437255,-760.5576863,0.000239,2]
[327775232,1716473437265,-4076.1939819,0.000239,2]
[327775233,1716473437274,-179.07979229,0.000239,2]
[327775234,1716473437284,-166.66666667,0.0002392,2]
[327775235,1716473437293,-165.43186829,0.00023944,2]
[327775236,1716473437303,-373.75146235,0.00023951,2]
[327775237,1716473437312,-150.25,0.00023988,2]
[327775238,1716473437323,-150.25,0.0002399,2]
[327775239,1716473437334,-150.25,0.0002399,2]
[327775240,1716473437343,-266.0,0.0002399,2]
[327775241,1716473437353,-200.05247862,0.0002399,2]
[327775242,1716473437363,-512.42699342,0.0002399,2]
[327775243,1716473437375,-512.42699342,0.0002399,2]
[327775244,1716473437386,-150.25,0.0002399,2]
[327775245,1716473437397,-150.25,0.0002399,2]
[327775246,1716473437409,-150.25,0.0002399,2]
[327775247,1716473437418,-150.25,0.0002399,2]
[327775248,1716473437427,-150.25,0.0002399,2]
[327775249,1716473437437,-150.25,0.0002399,2]
[327775250,1716473437447,-150.25,0.0002399,2]
[327775251,1716473437457,-150.25,0.0002399,2]
[327775252,1716473437469,-150.25,0.0002399,2]
[327775253,1716473437478,-150.25,0.0002399,2]
[327775254,1716473437488,-150.25,0.0002399,2]
[327775255,1716473437498,-150.25,0.0002399,2]
[327775256,1716473437510,-150.25,0.0002399,2]
[327775257,1716473437520,-150.25,0.0002399,2]
[327775258,1716473437530,-150.25,0.0002399,2]
[327775259,1716473437539,-150.25,0.0002399,2]
[327775260,1716473437549,-150.25,0.0002399,2]
[327775261,1716473437559,-150.25,0.0002399,2]
[327775262,1716473437569,-150.25,0.0002399,2]
[327775263,1716473437579,-150.25,0.0002399,2]
[327775264,1716473437589,-150.25,0.0002399,2]
[327775265,1716473437599,-150.25,0.0002399,2]
[327775266,1716473437609,-150.25,0.0002399,2]
[327775267,1716473437619,-150.25,0.0002399,2]
[327775268,1716473437629,-150.25,0.0002399,2]
[327775269,1716473437638,-150.25,0.0002399,2]
[327775270,1716473437648,-150.25,0.0002399,2]
[327775271,1716473437658,-150.25,0.0002399,2]
[327775272,1716473437667,-150.25,0.0002399,2]
[327775273,1716473437677,-150.25,0.0002399,2]
[327775274,1716473437687,-150.25,0.0002399,2]
[327775275,1716473437697,-150.25,0.0002399,2]
[327775276,1716473437707,-150.25,0.0002399,2]
[327775277,1716473437716,-150.25,0.0002399,2]
[327775278,1716473437727,-150.25,0.0002399,2]
[327775279,1716473437736,-150.25,0.0002399,2]
[327775280,1716473437746,-150.25,0.0002399,2]
[327775281,1716473437756,-150.25,0.0002399,2]
[327775282,1716473437766,-150.25,0.0002399,2]
[327775283,1716473437776,-150.25,0.0002399,2]
[327775284,1716473437786,-150.25,0.0002399,2]
[327775285,1716473437795,-150.25,0.0002399,2]
[327775286,1716473437806,-150.25,0.0002399,2]
[327775287,1716473437815,-150.25,0.0002399,2]
[327775288,1716473437825,-150.25,0.0002399,2]
[327775289,1716473437836,-1476.18439839,0.00023992,2]
[327775290,1716473437845,-4483.62559279,0.00023996,2]
[327775291,1716473437855,-10204.4453988,0.00023996,2]
[327775292,1716473437864,-56408.3874546,0.00023996,2]
[327775293,1716473437873,-1072.0,0.00023997,2]
[327775294,1716473437883,-31306.55539449,0.00023997,7]
[327775295,1716473437894,-241.69641567,0.00023998,2]
[327775296,1716473437903,-5475.61980437,0.00023998,2]
[327775297,1716473437915,-155.83191455,0.00023998,2]
[327775298,1716473437926,-2747.1482977,0.00023998,2]
[327775299,1716473437936,-3014.73211358,0.00023998,2]
[327775300,1716473437946,-198.413408,0.00023998,2]
[327775301,1716473437956,-303.79091211,0.00023998,2]
[327775302,1716473437966,-281.78392074,0.00023998,2]
[327775303,1716473437976,-411.25172581,0.00023998,2]
[327775304,1716473437985,-733.53808883,0.00023998,2]
[327775305,1716473437996,-162.55023303,0.00023998,2]
[327775306,1716473438006,-155.3251348,0.00023998,2]
[327775307,1716473438015,-182.80609729,0.00023998,2]
[327775308,1716473438025,-150.01,0.00023998,2]
[327775309,1716473438035,-1095.19911458,0.00023998,2]
[327775310,1716473438046,-155.27742365,0.00023999,2]
[327775311,1716473438056,-713.57722262,0.00023999,2]
[327775312,1716473438066,-3689.45828836,0.00023999,2]
[327775313,1716473438076,-231.0,0.00023999,2]
[327775314,1716473438086,-231.0,0.00023999,2]
[327775315,1716473438096,-231.0,0.00023999,2]
[327775316,1716473438105,-231.0,0.00023999,2]
[327775317,1716473438114,-231.0,0.00023999,2]
[327775318,1716473438124,-150.0,0.00023999,2]
[327775319,1716473438133,-150.0,0.00023999,2]
[327775320,1716473438142,-150.0,0.00023999,2]
[327775321,1716473438153,-150.0,0.00023999,2]
[327775322,1716473438165,-150.0,0.00023999,2]
[327775323,1716473438176,-150.0,0.00023999,2]
[327775324,1716473438186,-150.0,0.00023999,2]
[327775325,1716473438196,-150.0,0.00023999,2]
[327775326,1716473438205,-84183.90857312,0.00024,13]
[327775327,1716473438220,-283.63500843,0.00024,13]
[327775328,1716473438231,-340.345,0.00024,13]
[327775329,1716473438242,-265.65120639,0.00024,13]
[327775330,1716473438254,-16986.49999999,0.00024,13]
[327775331,1716473438265,-314.00126166,0.00024,13]
[327775332,1716473438277,-1574.3383352,0.00024,13]
[327775333,1716473438289,-2001.6144814,0.00024,13]
[327775352,1716473439042,-1089.58281505,0.00021419,2]
[327775353,1716473439055,-1128.62785598,0.00021419,2]
[327775354,1716473439065,-322.61257431,0.000219,2]
[327775355,1716473439076,-153.52085334,0.000239,2]
[327775356,1716473439086,-6383.83371637,0.00024,13]
[327775357,1716473439098,-1942.67665175,0.00024,13]
[327775358,1716473439111,-201597.76875365,0.00024,13]
[327775359,1716473439123,-750.72000004,0.00024,13]
[327775360,1716473439135,-1574.16599796,0.00024,13]
[327775361,1716473439148,-502.47863445,0.00024,13]
[327775362,1716473439165,-491.9965155,0.00024,13]
[327775363,1716473439178,-3403.34834,0.00024,13]
[327775364,1716473439190,-11215.94086116,0.00024,13]
[327775365,1716473439203,-2022.81688463,0.00024,13]
[327775366,1716473439215,-821.3895,0.00024,13]
[327775367,1716473439227,-1349.8298678,0.00024,13]
[327775368,1716473439239,-1056.98853312,0.00024,13]
[327775369,1716473439251,-2608.70054198,0.00024,13]
[327775370,1716473439264,-6767.59101851,0.00024,13]
[327775372,1716473439386,-18953.96960654,0.00024,13]
[327775375,1716473439399,-49083.03039346,0.00024,5]
[327775403,1716473441025,-544.46287227,0.00024,5]
[327775404,1716473441037,-1321.59551945,0.00024,5]
[327775405,1716473441049,-1021.69149942,0.00024,5]
[327775406,1716473441841,-373.2880552,0.00021418,2]
[327775407,1716473441851,-33300.37045206,0.00024,5]
[327775408,1716473441863,-4298.72300319,0.00024,5]
[327775409,1716473441875,-15927.12947745,0.00024,5]
[327775410,1716473441886,-8043.7475448,0.00024,5]
[327775411,1716473441899,-5637.61770891,0.00024,5]
[327775412,1716473441917,-68009.42362538,0.00024,5]
[327775413,1716473442835,-11355.4760977,0.00024,5]
[327775414,1716473442848,-3404.55,0.00024,5]
[327775415,1716473442871,-1979.23673373,0.00024,5]
[327775417,1716473442883,-192919.81294005,0.00024,5]
[327775419,1716473442894,-8272.17026246,0.00024,5]
[327775421,1716473442906,-1898.84001584,0.00024,5]
[327775423,1716473442920,-33899.99999999,0.00024,5]
[327775479,1716473443656,-2218.21067103,0.00021879,2]
[327775482,1716473443670,-719.0,0.00023704,2]
[327775484,1716473443680,-50000.0,0.0002399,2]
[327775486,1716473443690,-236.99959907,0.00023998,2]
[327775488,1716473443700,-912.66592882,0.00023998,2]
[327775490,1716473443710,-41211.12380108,0.00024,5]
[327775497,1716473444143,-386.06729726,0.00024,5]
[327775498,1716473444154,-68018.64258696,0.00024,5]
[327775499,1716473444170,-21187.38597454,0.00024,5]
[327775500,1716473444182,-759754.78626,0.00024,5]
[327775501,1716473444194,-649.22829042,0.00024,5]
[327775502,1716473444206,-681375.77556148,0.00024,5]
[327775503,1716473444218,-82622.69892432,0.00024,5]
[327775595,1716473446738,-1246.36481,0.00021417,2]
[327775596,1716473446751,-139.54254399,0.00021417,2]
[327775597,1716473446761,-322.61257427,0.00023241,2]
[327775598,1716473446770,-2827.63113976,0.00023999,2]
[327775599,1716473446779,-447.05078234,0.00024,5]
[327775600,1716473446791,-1560.75053962,0.00024,5]
[327775601,1716473446802,-534.45369094,0.00024,5]
[327775602,1716473446814,-7424.97509225,0.00024,5]
[327775603,1716473446825,-378.25350976,0.00024,5]
[327775608,1716473447061,-1603.95458095,0.00024,5]
[327775609,1716473447077,-949.975,0.00024,5]
[327775610,1716473447088,-607.71542608,0.00024,5]
[327775612,1716473447100,-10510.9944235,0.00024,5]
[327775614,1716473447259,6169.89088364,0.00018931,2]
[327775615,1716473450331,10000.0,0.00018931,2]
[327775616,1716473457693,165.288314,0.00019932,2]
[327775617,1716473458874,1043.17072019,0.00019821,2]
[327775618,1716473458904,34354.26037969,0.00019821,2]
[327775619,1716473458942,194.17845,0.00019932,2]
[327775620,1716473468703,230.846798,0.00019932,2]
[327775621,1716473469082,15105.4626507,0.00019821,2]
[327775622,1716473491153,321.56825341,0.00018931,2]
[327775625,1716473526110,2330.05360267,0.00017259,2]
[327775626,1716473600995,1000.0,0.00030425,120]
[327775627,1716473609517,2750.0,0.00019,2]
[327775629,1716473839749,156.05,0.00013973,2]
[327775630,1716473875176,939.58666517,0.00017259,2]
[327775631,1716473932784,2000.0,0.00018,2]
[327775632,1716473936994,2000.0,0.00019,2]
[327775633,1716473941164,2000.0,0.0002,2]
[327775634,1716474032116,725.42,0.00019214,2]
[327775635,1716474070751,209.69384146,0.000201,2]
[327775636,1716474101161,992.52,0.00020026,2]
[327775637,1716474105894,2092.43,0.00020004,2]
[327775638,1716474133277,250.0,0.00020064,2]
[327775639,1716474177977,200.0,0.00020004,2]
[327775640,1716474178569,257.16171658,0.00020004,2]
[327775641,1716474179341,445.50189457,0.00020004,2]
[327775642,1716474193071,257.16171658,0.00020064,2]
[327775643,1716474193274,445.50189457,0.00020004,2]
[327775644,1716474195843,197.50641388,0.00020064,2]
[327775645,1716474208463,2170.0,0.000188,2]
[327775646,1716474209039,1953.0,0.000188,2]
[327775647,1716474213076,257.16171658,0.00020064,2]
[327775648,1716474213276,445.50189457,0.00020064,2]
[327775649,1716474221000,1033.38,0.00019998,2]
[327775650,1716474229076,257.16171658,0.00020064,2]
[327775651,1716474229279,445.50189457,0.00020064,2]
[327775652,1716474249276,445.50189457,0.0002,2]
[327775653,1716474253581,257.16171658,0.0002,2]
[327775654,1716474265531,445.50189457,0.0002,2]
[327775655,1716474275830,257.16171658,0.0002,2]
[327775656,1716474283666,445.50189457,0.0002,2]
[327775657,1716474293584,257.16171658,0.0002,2]
[327775658,1716474303320,586.94365106,0.0002,2]
[327775659,1716474313967,200.0,0.00020084,2]
[327775660,1716474314090,257.16171658,0.0002,2]
[327775661,1716474330085,219.55606101,0.0002,2]
[327775662,1716474437053,254.81,0.00013973,2]
[327775663,1716474441163,-209.69384146,0.0002014,2]
[327775664,1716474441196,-1249.46,0.00020142,2]
[327775665,1716474441217,-194.17845,0.00020181,2]
[327775666,1716474441238,-230.846798,0.00020181,2]
[327775667,1716474441260,-151.0,0.00020189,2]
[327775668,1716474441281,-151.0,0.00020189,3]
[327775669,1716474441302,-499.99,0.00020189,2]
[327775670,1716474441323,-150.99,0.00020189,2]
[327775671,1716474441343,-209.69384146,0.00020199,2]
[327775672,1716474441365,-161.55,0.00020293,2]
[327775673,1716474441384,-1320.18,0.00020293,2]
[327775674,1716474441406,-628.07966112,0.00020297,2]
[327775675,1716474441430,-1000.0,0.00020298,2]
[327775676,1716474441450,-974.0,0.00020299,2]
[327775677,1716474441469,-1401.0,0.00020299,2]
[327775678,1716474441489,-439.0,0.00020299,2]
[327775679,1716474441509,-1644.0,0.00020299,2]
[327775680,1716474441530,-613.0,0.00020299,2]
[327775681,1716474441550,-1263.0,0.00020299,2]
[327775682,1716474441572,-1225.0,0.00020299,2]
[327775683,1716474441592,-2396.0,0.00020299,2]
[327775684,1716474441612,-809.0,0.00020299,2]
[327775685,1716474441635,-444.0,0.00020299,2]
[327775686,1716474441656,-1648.0,0.00020299,2]
[327775687,1716474441681,-1236.988,0.00020299,2]
[327775688,1716474441702,-235.0,0.00020299,2]
[327775689,1716474441724,-217.0,0.00020299,2]
[327775690,1716474441745,-3163.0,0.00020299,2]
[327775691,1716474441766,-2056.96849128,0.00020299,2]
[327775692,1716474466186,7199.85,0.00020084,2]
[327775696,1716474547430,23900.0,0.00020045,2]
[327775697,1716474551653,689.14,0.00018241,2]
[327775698,1716474623604,250.0,0.00020077,2]
[327775708,1716474632978,-250.0,0.0002011,2]
[327775709,1716474632990,-80.76835069,0.00020158,2]
[327775711,1716474633007,-419.23164931,0.00020158,2]
[327775713,1716474633019,-1000.0,0.00020181,2]
[327775715,1716474633030,-705.7557294,0.00020199,3]
[327775717,1716474633045,-171.54628926,0.00020199,3]
[327775719,1716474633057,-161.55,0.00020265,2]
[327775721,1716474633068,-108.14071193,0.00020299,2]
[327775722,1716474633083,-997.89079679,0.00020299,2]
[327775723,1716474633094,-1086.6952136,0.00020299,2]
[327775726,1716474634678,-378.3047864,0.00020299,2]
[327775729,1716474634690,-42.93964416,0.00020299,2]
[327775732,1716474634705,-596.73935584,0.00020299,2]
[327775735,1716474634717,-5757.0,0.00020299,2]
[327775737,1716474634730,-14709.61008057,0.00020299,2]
[327775739,1716474634745,-13009.71309815,0.00020299,2]
[327775741,1716474634765,-977.03499773,0.00020299,2]
[327775744,1716474634781,-384.20256361,0.00020299,2]
[327775746,1716474634795,-2000.0,0.00020299,2]
[327775748,1716474634812,-6804.43925994,0.00020299,2]
[327775750,1716474634823,-346.246,0.00020299,2]
[327775752,1716474634837,-2345.07425173,0.00020299,2]
[327775754,1716474634852,-2786.92574827,0.00020299,2]
[327775755,1716474634864,-161.55,0.00020397,2]
[327775756,1716474634876,-194.17845,0.0002043,2]
[327775757,1716474634889,-230.846798,0.0002043,2]
[327775758,1716474634901,-1283.17,0.0002043,2]
[327775759,1716474634913,-254.81,0.00020447,2]
[327775760,1716474634925,-150.0,0.000205,2]
[327775761,1716474634937,-689.14,0.00020505,2]
[327775762,1716474634949,-1000.0,0.0002051,2]
[327775763,1716474634960,-161.55,0.00020529,2]
[327775764,1716474634973,-539.6053082,0.00020554,2]
[327775765,1716474634985,-161.55,0.00020661,2]
[327775766,1716474634998,-194.17845,0.00020679,2]
[327775767,1716474635010,-230.846798,0.00020679,2]
[327775768,1716474635022,-161.55,0.00020793,2]
[327775769,1716474635035,-161.55,0.00020925,2]
[327775770,1716474635046,-194.17845,0.00020928,2]
[327775771,1716474635058,-230.846798,0.00020928,2]
[327775772,1716474635071,-25263.14,0.00020951,2]
[327775773,1716474635083,-14110.1,0.00020951,2]
[327775774,1716474635095,-1000.0,0.00020959,2]
[327775775,1716474635107,-718.07397259,0.00021,2]
[327775776,1716474635119,-2800.0,0.00021,2]
[327775777,1716474635131,-20000.0,0.00021,2]
[327775778,1716474635143,-2000.0,0.00021,2]
[327775779,1716474635155,-5512.46730855,0.00021,2]
[327775780,1716474635168,-150.0,0.00021,2]
[327775781,1716474635180,-1330.92640265,0.00021016,2]
[327775782,1716474635192,-161.55,0.00021057,2]
[327775783,1716474635204,-170.16,0.00021155,2]
[327775784,1716474635216,-161.55,0.00021189,2]
[327775785,1716474635228,-2100.0,0.00021218,2]
[327775786,1716474635239,-161.55,0.00021321,2]
[327775787,1716474635251,-1330.92640261,0.00021461,2]
[327775788,1716474635264,-150.0,0.000215,3]
[327775789,1716474635276,-2558.6479,0.00021888,2]
[327775790,1716474635290,-159.5763,0.00021888,2]
[327775791,1716474635302,-1000.0,0.000219,2]
[327775792,1716474635313,-6772.86623355,0.00021906,2]
[327775793,1716474635324,-1330.92640261,0.00021907,2]
[327775794,1716474635337,-628.07966112,0.00021915,2]
[327775795,1716474635346,-500.0,0.00021917,2]
[327775796,1716474635356,-540.87506517,0.00021917,2]
[327775797,1716474635365,-500.0,0.00021917,2]
[327775798,1716474635376,-500.0,0.00021917,2]
[327775799,1716474635386,-500.0,0.00021917,2]
[327775800,1716474635396,-500.0,0.00021917,2]
[327775801,1716474635406,-506.93625771,0.00021917,2]
[327775802,1716474635416,-500.0,0.00021917,2]
[327775803,1716474635427,-500.0,0.00021917,2]
[327775804,1716474635437,-500.0,0.00021917,2]
[327775805,1716474635447,-500.0,0.00021917,2]
[327775806,1716474635457,-500.0,0.00021917,2]
[327775807,1716474635467,-500.0,0.00021917,2]
[327775808,1716474635478,-500.0,0.00021917,2]
[327775809,1716474635488,-500.0,0.00021917,2]
[327775810,1716474635852,-500.0,0.00021917,2]
[327775811,1716474635881,-500.0,0.00021917,2]
[327775812,1716474635902,-687.08,0.00021917,2]
[327775813,1716474635911,-2553.71,0.00021917,2]
[327775814,1716474635921,-503.94417539,0.00021917,2]
[327775815,1716474635930,-500.0,0.00021917,2]
[327775816,1716474635940,-500.0,0.00021917,2]
[327775817,1716474635949,-500.0,0.00021917,2]
[327775818,1716474635959,-500.0,0.00021917,2]
[327775819,1716474635969,-512.8150396,0.00021917,2]
[327775820,1716474635978,-500.0,0.00021917,2]
[327775821,1716474635988,-500.0,0.00021917,2]
[327775822,1716474635998,-500.0,0.00021917,2]
[327775823,1716474636008,-500.0,0.00021917,2]
[327775824,1716474636018,-1235.38,0.00021917,2]
[327775825,1716474636027,-500.0,0.00021917,2]
[327775826,1716474636037,-500.0,0.00021917,2]
[327775827,1716474636047,-514.50701892,0.00021917,2]
[327775828,1716474636057,-500.0,0.00021917,2]
[327775829,1716474636067,-507.83088895,0.00021917,2]
[327775830,1716474636078,-500.0,0.00021917,2]
[327775831,1716474636093,-1309.59,0.00021917,2]
[327775832,1716474636103,-500.0,0.00021917,2]
[327775833,1716474636113,-1070.3,0.00021917,2]
[327775834,1716474636123,-500.0,0.00021917,2]
[327775835,1716474636133,-500.0,0.00021917,2]
[327775836,1716474636144,-500.0,0.00021917,2]
[327775837,1716474636154,-6.30135528,0.00021917,2]
[327775838,1716474636167,-266.29421,0.00021917,2]
[327775839,1716474636223,-227.40443472,0.00021917,2]
[327775840,1716474636233,-500.0,0.00021917,2]
[327775841,1716474636244,-723.04,0.00021917,2]